fUSD/lending_fUSD_20250926
["ID","MTS","AMOUNT","RATE_DAILY","PERIOD"]
[387817031,1758888633664,-151.0,0.000195,2]
[387817032,1758888633674,-151.0,0.000195,2]
[387817033,1758888633685,-151.0,0.000195,2]
[387817034,1758888633695,-151.0,0.000195,2]
[387817035,1758888633705,-151.0,0.000195,2]
[387817036,1758888633716,-151.0,0.000195,2]
[387817037,1758888633726,-286.81571492,0.000195,2]
[387817038,1758888633736,-151.0,0.000195,2]
[387817039,1758888633746,-151.0,0.000195,2]
[387817040,1758888633756,-151.0,0.000195,2]
[387817041,1758888633766,-151.0,0.000195,2]
[387817042,1758888633777,-151.0,0.000195,2]
[387817043,1758888633787,-151.0,0.000195,2]
[387817044,1758888633798,-151.0,0.000195,2]
[387817045,1758888633808,-151.0,0.000195,2]
[387817046,1758888633819,-151.0,0.000195,2]
[387817047,1758888633830,-2010.74220556,0.00019511,2]
[387817048,1758888633842,-1000.0,0.00019513,2]
[387817049,1758888633854,-700.31116702,0.00019541,2]
[387817050,1758888633865,-511.48863841,0.00019573,2]
[387817051,1758888633880,-700.31116702,0.00019584,2]
[387817052,1758888633892,-1518.61,0.00019589,2]
[387817053,1758888633903,-700.31116702,0.00019628,2]
[387817054,1758888633914,-700.31116702,0.00019671,2]
[387817055,1758888633926,-1000.0,0.000197,2]
[387817056,1758888633936,-700.31116702,0.00019714,2]
[387817057,1758888633947,-700.31116702,0.00019757,2]
[387817058,1758888633958,-436.64,0.00019793,2]
[387817059,1758888633968,-5000.0,0.000198,2]
[387817060,1758888633979,-700.31116702,0.000198,2]
[387817061,1758888633990,-174.66092213,0.000198,2]
[387817062,1758888634001,-8045.06119144,0.000198,2]
[387817063,1758888634011,-2085.36224494,0.000198,2]
[387817064,1758888634022,-160.52038811,0.000198,2]
[387817065,1758888634032,-163.6649697,0.000198,2]
[387817066,1758888634043,-1483.8218254,0.000198,2]
[387817067,1758888634053,-181.4106866,0.000198,3]
[387817068,1758888634064,-500.0,0.00019809,2]
[387817069,1758888634074,-174.66092209,0.00019825,2]
[387817070,1758888634086,-174.66092209,0.0001985,2]
[387817071,1758888634096,-16965.88339833,0.00019862,2]
[387817072,1758888634106,-1518.61,0.00019863,2]
[387817073,1758888634117,-16965.88339833,0.0001987,2]
[387817074,1758888634131,-245.97090149,0.00019871,2]
[387817075,1758888634142,-500.0,0.00019873,2]
[387817076,1758888634153,-167.77375629,0.00019873,2]
[387817077,1758888634164,-500.0,0.00019873,2]
[387817078,1758888634175,-500.0,0.00019873,2]
[387817079,1758888634186,-521.67487993,0.00019873,2]
[387817080,1758888634428,-500.0,0.00019873,2]
[387817081,1758888634447,-289.8097871,0.00019873,2]
[387817082,1758888634457,-500.0,0.00019873,2]
[387817083,1758888634467,-330.17280914,0.00019873,2]
[387817084,1758888634477,-500.0,0.00019873,2]
[387817085,1758888634487,-500.0,0.00019873,2]
[387817086,1758888634497,-500.0,0.00019873,2]
[387817087,1758888634506,-500.0,0.00019873,2]
[387817088,1758888634516,-500.36214872,0.00019873,2]
[387817089,1758888634525,-500.0,0.00019873,2]
[387817090,1758888634535,-500.0,0.00019873,2]
[387817091,1758888634544,-500.0,0.00019873,2]
[387817092,1758888634554,-500.0,0.00019873,2]
[387817093,1758888634563,-500.0,0.00019873,2]
[387817094,1758888634575,-500.90018224,0.00019873,2]
[387817095,1758888634585,-500.0,0.00019873,2]
[387817096,1758888634595,-174.66092209,0.00019875,2]
[387817097,1758888634604,-4433.42266184,0.0001988,2]
[387817098,1758888634615,-245.97090149,0.0001988,2]
[387817099,1758888634626,-296.28609263,0.0001989,2]
[387817100,1758888634636,-296.28609263,0.0001989,2]
[387817101,1758888634645,-296.28609263,0.0001989,2]
[387817102,1758888634657,-150.0,0.0001989,4]
[387817103,1758888634668,-150.0,0.0001989,4]
[387817104,1758888634677,-150.0,0.0001989,4]
[387817105,1758888634687,-150.0,0.0001989,4]
[387817106,1758888634698,-150.0,0.0001989,4]
[387817107,1758888634708,-255.36740143,0.0001989,4]
[387817108,1758888634718,-150.0,0.0001989,4]
[387817109,1758888634728,-300.0,0.00019899,2]
[387817110,1758888634738,-300.0,0.00019899,2]
[387817111,1758888634748,-192.2447278,0.00019899,2]
[387817112,1758888634758,-300.0,0.00019899,2]
[387817113,1758888634768,-300.0,0.00019899,2]
[387817114,1758888634778,-150.0,0.00019899,2]
[387817115,1758888634788,-1000.0,0.00019899,2]
[387817116,1758888634798,-666.0,0.00019899,2]
[387817117,1758888634808,-500.0,0.000199,2]
[387817118,1758888634818,-500.0,0.000199,2]
[387817119,1758888634829,-51496.91199389,0.000199,2]
[387817120,1758888634845,-4808.82070651,0.000199,2]
[387817121,1758888634883,-352.06879392,0.000199,2]
[387817122,1758888634893,-9791.659249,0.000199,2]
[387817123,1758888635047,-1459.41560526,0.000199,2]
[387817359,1758888640319,-151.0,0.0001989,2]
[387817360,1758888640328,-1159.0,0.000199,2]
[387817363,1758888640340,-6523.19076568,0.000199,2]
[387817365,1758888640351,-3456.46434975,0.000199,2]
[387817369,1758888640386,-4684.02766231,0.000199,2]
[387817375,1758888640439,-558.91267932,0.000199,2]
[387817377,1758888640451,-571.76110626,0.000199,2]
[387817380,1758888640551,-3071.36432793,0.000199,2]
[387817381,1758888640563,-7673.56228164,0.000199,2]
[387817382,1758888640575,-575.30635287,0.000199,2]
[387817551,1758888642217,-9104.7015242,0.00019896,2]
[387817553,1758888642228,-962854.06459453,0.000199,2]
[387817555,1758888642238,-947.72028106,0.000199,2]
[387817557,1758888642247,-1378999.81944985,0.000199,2]
[387817740,1758888643994,-6717.95913,0.000199,2]
[387817746,1758888644041,-1000.0,0.000199,2]
[387817786,1758888644422,-2500.0,0.000199,2]
[387817789,1758888644434,-1000.0898523,0.000199,2]
[387817812,1758888644646,-328.78090664,0.000199,2]
[387817814,1758888644658,-10219.02144788,0.000199,2]
[387817981,1758888646236,-443.37196412,0.000199,2]
[387817983,1758888646248,-3964.48314527,0.000199,2]
[387817985,1758888646260,-2343.4,0.000199,2]
[387817989,1758888646294,-2339.28278073,0.000199,2]
[387817994,1758888646329,-5110.44262223,0.000199,2]
[387817999,1758888646371,-126817.11492616,0.000199,2]
[387818002,1758888646389,-460.7120729,0.000199,2]
[387818011,1758888646467,-1003.17043024,0.000199,2]
[387818862,1758888666057,174.05,0.00028695,120]
[387818864,1758889084866,902.8681492,0.00030137,120]
[387818865,1758889144198,525.85593948,0.000301,120]
[387818866,1758889300254,161.396481,0.00018156,2]
[387818867,1758889300949,154.620611,0.00018402,2]
[387818868,1758889301307,154.620611,0.00018401,2]
[387818869,1758889302388,154.620611,0.00018156,2]
[387818870,1758889302808,154.620611,0.00017909,2]
[387818871,1758889302995,154.620611,0.00017859,2]
[387818872,1758889303196,154.620611,0.00017857,2]
[387818873,1758889304125,154.620611,0.00017852,2]
[387818874,1758889305963,156.295697,0.00018401,2]
[387818875,1758889306120,156.295697,0.00018156,2]
[387818876,1758889306502,156.295697,0.00017897,2]
[387818877,1758889306697,156.295697,0.00017857,2]
[387818878,1758889307172,154.007784,0.00018401,2]
[387818879,1758889307217,156.295697,0.00017852,2]
[387818880,1758889307571,154.007784,0.00018156,2]
[387818881,1758889307808,154.007784,0.00017897,2]
[387818882,1758889307981,154.007784,0.00017857,2]
[387818883,1758889308134,154.007784,0.00017852,2]
[387818884,1758889454538,-260.10951164,0.00018616,2]
[387818885,1758889459122,-85.71048836,0.00018616,2]
[387818886,1758889459146,-243.98851878,0.0001865,2]
[387818887,1758889464259,-6.01148122,0.0001865,2]
[387818888,1758889491050,-271.10159425,0.00018641,2]
[387818889,1758889496627,-163.06,0.00018641,2]
[387818890,1758889501308,-230.3334796,0.00018641,2]
[387818891,1758889504166,-268.8065204,0.00018641,2]
[387818892,1758889508638,-66.69840575,0.00018641,2]
[387818893,1758889508668,-211.44022731,0.00018662,2]
[387818894,1758889512497,150.0,0.00017901,2]
[387818895,1758889516590,150.0,0.00017901,2]
[387818896,1758889517960,150.0,0.00017901,2]
[387818897,1758889520241,150.0,0.00017901,2]
[387818898,1758889524329,258.69002217,0.00017901,2]
[387818899,1758889524489,178.6352172,0.00017901,2]
[387818900,1758889535420,150.0,0.00017901,2]
[387818901,1758889535518,150.0,0.00017901,2]
[387818902,1758889535764,150.0,0.00017901,2]
[387818903,1758889537864,150.0,0.00017901,2]
[387818904,1758889539039,150.0,0.00017901,2]
[387818906,1758889650215,400.0,0.0003,120]
[387818907,1758889684459,1300.0,0.0003,120]
[387818913,1758889741169,250.0,0.00015,2]
[387818914,1758889747480,2750.26,0.00030137,120]
[387818925,1758889832190,-1000.0,0.00018715,2]
[387818926,1758889832201,-164.21,0.00018793,2]
[387818927,1758889832212,-585.14,0.00018797,2]
[387818929,1758889832223,-1200.0,0.00018865,2]
[387818931,1758889832233,-500.0,0.00018866,2]
[387818933,1758889832243,-500.0,0.00018866,2]
[387818935,1758889832253,-500.0,0.00018866,2]
[387818938,1758889832262,-500.0,0.00018866,2]
[387818941,1758889832272,-500.0,0.00018866,2]
[387818945,1758889832283,-500.0,0.00018866,2]
[387818947,1758889832293,-500.0,0.00018866,2]
[387818949,1758889832303,-500.0,0.00018866,2]
[387818951,1758889832314,-500.0,0.00018866,2]
[387818953,1758889832324,-500.0,0.00018866,2]
[387818955,1758889832334,-500.0,0.00018866,2]
[387818956,1758889832344,-500.0,0.00018866,2]
[387818958,1758889832354,-500.0,0.00018866,2]
[387818962,1758889832364,-500.0,0.00018866,2]
[387818964,1758889832374,-391.78734722,0.00018866,2]
[387818966,1758889832384,-535.98670126,0.00018866,2]
[387818968,1758889832394,-3883.26,0.00018874,2]
[387818970,1758889832404,-150.0,0.00018896,2]
[387818972,1758889832421,-150.0,0.00018896,2]
[387818975,1758889832431,-150.99,0.00018896,2]
[387818976,1758889832442,-4280.273252,0.0001899,2]
[387818977,1758889832452,-179.58757617,0.00019,2]
[387818979,1758889832462,-629.25250279,0.00019,2]
[387818981,1758889832473,-174.05,0.0001913,2]
[387818983,1758889832483,-638.5283312,0.00019483,2]
[387818985,1758889832494,-638.52833117,0.00019518,2]
[387818986,1758889832504,-638.52833117,0.00019553,2]
[387818987,1758889832514,-200.0,0.00019571,2]
[387818988,1758889832524,-200.0,0.00019571,2]
[387818989,1758889832534,-500.0,0.00019571,2]
[387818990,1758889832544,-500.0,0.00019571,2]
[387818991,1758889832554,-200.0,0.00019571,2]
[387818992,1758889832565,-151.0,0.00019571,2]
[387818993,1758889832575,-151.0,0.00019571,2]
[387818994,1758889832585,-151.0,0.00019571,2]
[387818995,1758889832595,-151.0,0.00019571,2]
[387818996,1758889832607,-151.0,0.00019571,2]
[387818997,1758889832618,-151.0,0.00019571,2]
[387818998,1758889832628,-500.0,0.00019571,2]
[387818999,1758889832639,-151.0,0.00019571,2]
[387819000,1758889832649,-262.01115332,0.00019571,2]
[387819001,1758889832751,-237.98884668,0.00019571,2]
[387819002,1758889832761,-500.0,0.00019571,2]
[387819003,1758889832772,-151.0,0.00019571,2]
[387819004,1758889832782,-56.77499407,0.00019571,2]
[387819500,1758889842763,-500.0,0.00018864,2]
[387819502,1758889842773,-321.30970525,0.00018864,2]
[387819504,1758889842783,-443.22500593,0.00019571,2]
[387819507,1758889842793,-151.0,0.00019571,2]
[387819509,1758889842803,-500.0,0.00019571,2]
[387819511,1758889842812,-151.0,0.00019571,2]
[387819513,1758889842821,-500.0,0.00019571,2]
[387819515,1758889842830,-151.0,0.00019571,2]
[387819517,1758889842839,-500.0,0.00019571,2]
[387819519,1758889842848,-247.6243839,0.00019571,2]
[387819521,1758889842858,-500.0,0.00019571,2]
[387819523,1758889842868,-500.0,0.00019571,2]
[387819525,1758889842877,-202.03040385,0.00019571,2]
[387819527,1758889842887,-151.0,0.00019571,2]
[387819529,1758889842896,-151.0,0.00019571,2]
[387819531,1758889842906,-151.0,0.00019571,2]
[387819533,1758889842921,-151.0,0.00019571,2]
[387819535,1758889842930,-151.0,0.00019571,2]
[387819537,1758889842939,-151.0,0.00019571,2]
[387819539,1758889842948,-151.0,0.00019571,2]
[387819541,1758889842958,-151.0,0.00019571,2]
[387819543,1758889842967,-151.0,0.00019571,2]
[387819545,1758889842976,-151.0,0.00019571,2]
[387819547,1758889842985,-151.0,0.00019571,2]
[387819549,1758889842994,-658.72723083,0.00019573,2]
[387819551,1758889843004,-638.52833117,0.00019589,2]
[387819553,1758889843014,-318.26,0.000196,2]
[387819555,1758889843023,-638.52833117,0.00019624,2]
[387819557,1758889843033,-638.52833117,0.00019659,2]
[387819559,1758889843043,-638.52833117,0.00019694,2]
[387819561,1758889843052,-159.12,0.000197,2]
[387819563,1758889843061,-500.0,0.00019725,2]
[387819565,1758889843071,-292.70742375,0.00019725,2]
[387819567,1758889843081,-168.11285321,0.00019725,2]
[387819569,1758889843090,-6206.33289399,0.00019726,2]
[387819571,1758889843106,-16324.61710601,0.00019726,2]
[387819574,1758889843115,-638.52833117,0.0001973,2]
[387819576,1758889843125,-150.0,0.00019736,2]
[387819578,1758889843134,-585.14,0.00019737,2]
[387819580,1758889843145,-638.52833117,0.00019765,2]
[387819582,1758889843155,-150.0,0.00019788,2]
[387819584,1758889843169,-150.0,0.00019788,2]
[387819586,1758889843179,-236.17091096,0.00019788,2]
[387819588,1758889843189,-150.0,0.00019788,2]
[387819590,1758889843198,-150.0,0.00019788,2]
[387819592,1758889843208,-200.83656629,0.00019788,2]
[387819595,1758889843218,-150.0,0.00019788,2]
[387819598,1758889843227,-500.0,0.00019788,2]
[387819601,1758889843237,-150.0,0.00019788,2]
[387819604,1758889843247,-500.0,0.00019788,2]
[387819607,1758889843256,-500.0,0.00019788,2]
[387819609,1758889843265,-150.0,0.00019788,2]
[387819611,1758889843275,-500.0,0.00019788,2]
[387819613,1758889843285,-500.0,0.00019788,2]
[387819615,1758889843294,-150.0,0.00019788,2]
[387819617,1758889843304,-150.0,0.00019788,2]
[387819619,1758889843314,-150.0,0.00019788,2]
[387819621,1758889843324,-1139.0,0.00019788,2]
[387819623,1758889843334,-500.0,0.00019788,2]
[387819625,1758889843343,-3713.7181,0.000198,2]
[387819627,1758889843353,-5000.0,0.000198,2]
[387819629,1758889843363,-1204.450026,0.000198,2]
[387819631,1758889843372,-500.0,0.000198,2]
[387819633,1758889843382,-500.0,0.000198,2]
[387819635,1758889843392,-500.0,0.000198,2]
[387819637,1758889843402,-638.52833117,0.000198,2]
[387819639,1758889843416,-150.0,0.000198,2]
[387819641,1758889843426,-500.0,0.000198,2]
[387819643,1758889843435,-150.0,0.000198,2]
[387819646,1758889843445,-500.0,0.000198,2]
[387819647,1758889843455,-150.0,0.000198,2]
[387819649,1758889843464,-298.15679265,0.000198,2]
[387819652,1758889843474,-500.0,0.000198,2]
[387819654,1758889843484,-500.0,0.000198,2]
[387819656,1758889843493,-500.0,0.000198,2]
[387819658,1758889843504,-12560.74004359,0.000198,2]
[387819660,1758889843514,-582.36118304,0.000198,2]
[387819662,1758889843524,-962.6042883,0.000198,2]
[387819664,1758889843534,-3257.8927126,0.000198,2]
[387819666,1758889843544,-165.47782337,0.000198,2]
[387819668,1758889843554,-437.1082908,0.000198,2]
[387819670,1758889843565,-161.17171234,0.000198,2]
[387819672,1758889843575,-500.0,0.000198,2]
[387819674,1758889843584,-500.0,0.000198,2]
[387819676,1758889843594,-500.0,0.000198,2]
[387819677,1758889843603,-500.0,0.000198,2]
[387819679,1758889843613,-500.0,0.000198,2]
[387819681,1758889843623,-500.0,0.000198,2]
[387819684,1758889843632,-500.0,0.000198,2]
[387819685,1758889843641,-500.0,0.000198,2]
[387819687,1758889843651,-500.0,0.000198,2]
[387819689,1758889843663,-500.0,0.000198,2]
[387819691,1758889843676,-500.0,0.000198,2]
[387819694,1758889843686,-500.0,0.000198,2]
[387819695,1758889843696,-500.0,0.000198,2]
[387819698,1758889843706,-500.0,0.000198,2]
[387819700,1758889843716,-500.0,0.000198,2]
[387819702,1758889843726,-500.0,0.000198,2]
[387819703,1758889843735,-500.0,0.000198,2]
[387819705,1758889843745,-500.0,0.000198,2]
[387819708,1758889843755,-500.0,0.000198,2]
[387819709,1758889843765,-500.0,0.000198,2]
[387819711,1758889843775,-500.0,0.000198,2]
[387819714,1758889843784,-500.0,0.000198,2]
[387819716,1758889843794,-210.01271737,0.000198,2]
[387819719,1758889843807,-289.98728263,0.000198,2]
[387819721,1758889843816,-286.40459877,0.000198,2]
[387819723,1758889843825,-197.91686997,0.00019873,2]
[387819725,1758889843835,-501.13884522,0.00019873,2]
[387819727,1758889843844,-500.0,0.00019873,2]
[387819729,1758889843854,-500.0,0.00019873,2]
[387819731,1758889843863,-500.0,0.00019873,2]
[387819733,1758889843873,-500.0,0.00019873,2]
[387819735,1758889843883,-508.48684969,0.00019873,2]
[387819737,1758889843893,-501.93504926,0.00019873,2]
[387819739,1758889843903,-500.0,0.00019873,2]
[387819741,1758889843916,-500.0,0.00019873,2]
[387819743,1758889843925,-500.0,0.00019873,2]
[387819745,1758889843934,-500.0,0.00019873,2]
[387819747,1758889843944,-500.0,0.00019873,2]
[387819749,1758889843954,-500.0,0.00019873,2]
[387819751,1758889843964,-500.0,0.00019873,2]
[387819753,1758889843973,-500.0,0.00019873,2]
[387819755,1758889843983,-500.0,0.00019873,2]
[387819756,1758889843992,-500.0,0.00019873,2]
[387819757,1758889844002,-500.0,0.0001988,2]
[387819758,1758889844011,-265.75568472,0.0001989,2]
[387819759,1758889844020,-265.75568472,0.0001989,2]
[387819760,1758889844029,-265.75568472,0.0001989,2]
[387819761,1758889844038,-150.0,0.0001989,4]
[387819762,1758889844047,-150.0,0.0001989,4]
[387819763,1758889844056,-150.0,0.0001989,4]
[387819764,1758889844066,-150.0,0.0001989,4]
[387819766,1758889844075,-594.55053329,0.00019899,2]
[387819768,1758889844084,-300.0,0.00019899,2]
[387819770,1758889844094,-666.0,0.00019899,2]
[387819772,1758889844104,-300.0,0.00019899,2]
[387819774,1758889844118,-1369.28766943,0.00019899,5]
[387819776,1758889844128,-300.0,0.00019899,2]
[387819778,1758889844138,-150.0,0.00019899,2]
[387819780,1758889844148,-300.0,0.00019899,2]
[387819782,1758889844158,-300.0,0.00019899,2]
[387819785,1758889844172,-300.0,0.00019899,2]
[387819786,1758889844182,-1000.0,0.00019899,2]
[387819788,1758889844191,-9727.12139624,0.000199,2]
[387819797,1758889844266,-258521.98562525,0.000199,2]
[387819799,1758889844276,-500.0,0.000199,2]
[387819801,1758889844286,-350.28340573,0.000199,2]
[387819828,1758889844506,-28328.90074716,0.000199,2]
[387819831,1758889844520,-990488.25560592,0.000199,2]
[387819833,1758889844530,-1073716.88046558,0.000199,2]
[387819835,1758889844542,-2151.19054976,0.000199,2]
[387819863,1758889844808,2000.0,0.0003,120]
[387820235,1758889848608,-396.83604645,0.00019736,2]
[387820248,1758889848746,-103.16395355,0.00019736,2]
[387820250,1758889848757,-2298.0,0.000199,2]
[387820256,1758889848816,-8056.57099012,0.000199,2]
[387820319,1758889850846,-500.0,0.00019736,2]
[387820320,1758889850857,-1343.18795472,0.00019879,2]
[387820321,1758889850870,-2752.4,0.00019879,2]
[387820322,1758889850884,-1917.22029484,0.00019879,2]
[387820323,1758889850981,-4271.818644,0.00019879,2]
[387820326,1758889913847,513.76,0.00030137,120]
[387820327,1758889949463,1000.0,0.0003013,120]
[387820328,1758889995622,2077.079295,0.00025885,120]
[387820329,1758890002412,512.553218,0.00025885,120]
[387820330,1758890007499,1716.68,0.0003013,120]
[387820331,1758890081363,156.97,9.417e-05,2]
[387820332,1758890177845,226.0,0.00030137,120]
[387820333,1758890197951,227.0,0.00030137,120]
[387820334,1758890346043,1000.0,0.00030136,120]
[387820335,1758890412118,-218.57300721,0.00018629,2]
[387820336,1758890415931,-178.66699279,0.00018598,2]
[387820337,1758890417672,-152.47300721,0.00018598,2]
[387820338,1758890417696,-289.2594641,0.00018629,2]
[387820339,1758890421021,-208.35752869,0.00018629,2]
[387820343,1758890715830,150.0,0.00017901,2]
[387820362,1758890908750,60.0,0.00018589,7]
[387820368,1758890946533,-90.0,0.00018589,7]
[387820369,1758890946556,-72.14020261,0.00018632,2]
[387820370,1758890952594,-186.1127622,0.00018632,2]
[387820371,1758890956745,-41.74703519,0.00018632,2]
[387820372,1758890956768,-160.03834314,0.00018675,2]
[387820373,1758890960609,-300.0,0.00018675,2]
[387820374,1758890976501,154.620612,0.00018156,2]
[387820375,1758890976821,154.620612,0.00017897,2]
[387820376,1758890977036,154.620612,0.00017857,2]
[387820377,1758890977663,-154.620612,0.00018647,2]
[387820378,1758890978841,-153.559388,0.00018647,2]
[387820379,1758890982788,-18.587312,0.00018647,2]
[387820380,1758890982812,-161.396481,0.00018647,2]
[387820381,1758890983668,156.295697,0.00018649,2]
[387820382,1758890984794,156.295697,0.00018401,2]
[387820383,1758890985213,156.295697,0.00017909,2]
[387820384,1758890985725,156.295697,0.00017857,2]
[387820385,1758890986699,-149.96165686,0.00018675,2]
[387820386,1758890987149,104.58079561,0.00018649,2]
[387820387,1758890987323,154.007784,0.00018401,2]
[387820388,1758890987452,154.007784,0.00017909,2]
[387820389,1758890987934,154.007784,0.00017857,2]
[387820390,1758890991938,-49.42698839,0.00018649,2]
[387820391,1758891008550,4525.27,0.00018476,2]
[387820392,1758891019963,158.18,9.243e-05,2]
[387820460,1758891032996,-162.43,0.00018754,2]
[387820462,1758891033006,-184.57,0.00018783,2]
[387820468,1758891033050,-166.51,0.00018783,2]
[387820470,1758891033061,-189.0,0.00018834,2]
[387820472,1758891033072,-12.56577376,0.00018835,2]
[387820474,1758891033085,-287.43422624,0.00018835,2]
[387820476,1758891033095,-1094.74030953,0.00018835,2]
[387820481,1758891033134,-105.25969047,0.00018835,2]
[387820483,1758891033144,-1200.0,0.00018836,2]
[387820485,1758891033154,-33.66453577,0.00018838,2]
[387820487,1758891033167,-139.24546423,0.00018838,2]
[387820489,1758891033177,-216.33449848,0.00018843,2]
[387820804,1758891039021,-500.0,0.00018835,2]
[387820806,1758891039031,-500.0,0.00018835,2]
[387820808,1758891039041,-500.0,0.00018835,2]
[387820810,1758891039050,-500.0,0.00018835,2]
[387820812,1758891039059,-500.0,0.00018835,2]
[387820814,1758891039069,-500.0,0.00018835,2]
[387820816,1758891039079,-439.53889965,0.00018835,2]
[387820818,1758891039087,-9783.65550152,0.00018843,2]
[387820821,1758891039097,-1029.98,0.00018913,2]
[387820823,1758891039107,-2131.62180804,0.00018945,2]
[387820825,1758891039116,-9552.16786547,0.00018945,2]
[387820827,1758891039127,-151.0,0.00018945,2]
[387820829,1758891039136,-209.40437684,0.00018945,2]
[387820831,1758891039146,-277.35679052,0.00018945,2]
[387820833,1758891039155,-554.89519662,0.00018999,2]
[387820835,1758891039165,-187.20937091,0.00018999,2]
[387820837,1758891039174,-9905.5980765,0.00019,2]
[387820839,1758891039184,-10272.10520533,0.00019055,2]
[387820841,1758891039195,-10652.17309792,0.0001911,2]
[387820843,1758891039204,-154.007784,0.0001914,2]
[387820846,1758891039213,-11046.30350255,0.00019165,2]
[387820848,1758891039223,-300.0,0.000192,7]
[387820850,1758891039232,-11455.01673214,0.0001922,2]
[387820851,1758891039242,-166.54,0.00019222,2]
[387820853,1758891039252,-11878.85235123,0.00019275,2]
[387820856,1758891039263,-473.08,0.00019296,2]
[387820858,1758891039272,-473.08,0.00019296,2]
[387820860,1758891039281,-473.08,0.00019296,2]
[387820862,1758891039290,-473.08,0.000193,2]
[387820864,1758891039300,-700.0,0.000193,7]
[387820866,1758891039309,-10892.64150422,0.0001933,2]
[387820868,1758891039318,-154.007784,0.00019389,2]
[387820870,1758891039327,-277.7628,0.000194,2]
[387820872,1758891039337,-1000.0,0.000194,7]
[387820874,1758891039347,-218.03848169,0.00019465,2]
[387820876,1758891039356,-273.18923041,0.00019488,2]
[387820878,1758891039365,-500.0,0.00019488,2]
[387820880,1758891039375,-200.0,0.00019488,2]
[387820882,1758891039385,-500.0,0.00019488,2]
[387820884,1758891039394,-500.0,0.00019488,2]
[387820886,1758891039404,-200.0,0.00019488,2]
[387820888,1758891039414,-500.0,0.00019488,2]
[387820889,1758891039423,-200.0,0.00019488,2]
[387820890,1758891039433,-160.0,0.00019488,2]
[387820891,1758891039443,-500.0,0.00019488,2]
[387820892,1758891039452,-200.0,0.00019488,2]
[387820893,1758891039465,-500.0,0.00019488,2]
[387820894,1758891039475,-200.0,0.00019488,2]
[387820895,1758891039484,-500.0,0.00019488,2]
[387820896,1758891039493,-500.0,0.00019488,2]
[387820897,1758891039503,-500.0,0.00019488,2]
[387820899,1758891039512,-200.0,0.00019488,2]
[387820901,1758891039522,-500.0,0.00019488,2]
[387820903,1758891039531,-500.0,0.00019488,2]
[387820905,1758891039541,-200.0,0.00019488,2]
[387820907,1758891039551,-500.0,0.00019488,2]
[387820909,1758891039560,-500.0,0.00019488,2]
[387820911,1758891039570,-200.0,0.00019488,2]
[387820913,1758891039579,-200.0,0.00019488,2]
[387820916,1758891039588,-200.0,0.00019488,2]
[387820918,1758891039598,-200.0,0.00019488,2]
[387820920,1758891039608,-500.0,0.00019488,2]
[387820922,1758891039617,-500.0,0.00019488,2]
[387820924,1758891039628,-500.0,0.00019488,2]
[387820926,1758891039638,-500.0,0.00019488,2]
[387820928,1758891039647,-500.0,0.00019488,2]
[387820930,1758891039656,-500.0,0.00019488,2]
[387820932,1758891039666,-500.0,0.00019488,2]
[387820934,1758891039675,-200.0,0.00019488,2]